Workbook

Sheet MD
B1: Molecular Dynamics
D2: x | E2: y | K2: p | L2: degree
C3: Potential center | D3: 0 | E3: 0 | G3: mass= | H3: 2 | J3: q | K3: 0.785 | L3: =K3/(2*PI())*360 -> 44.97718692 | AA3: absF | AB3: Scale
A4: Starting XY | D4: 2 | E4: 2 | G4: dq= | H4: 0.5 | K4: Epsilon= | L4: 15 | AA4: 0 | AB4: 1
A5: Starting V | D5: 0 | E5: -0.1 | G5: dt= | H5: 0.08 | K5: Sigma= | L5: 0.8 | AA5: 0.1 | AB5: 0.8
AA6: 0.2 | AB6: 0.6
AA7: 0.5 | AB7: 0.4
K8: x | L8: << x to scale | AA8: 1 | AB8: 0.2
B9: x | C9: y | D9: R | E9: F | F9: q | G9: F(x) | H9: F(y) | I9: a(x) | J9: a(y) | K9: dt | L9: v(x) | M9: v(y) | AA9: 10 | AB9: 0.1
B10: =IF(ISNUMBER(B9),B9+L9*K9,$D4) -> 2 | C10: =IF(ISNUMBER(C9),C9+M9*K9,$E4) -> 2 | D10: =IF(AND(ISNUMBER(B10),ISNUMBER(C10)),dist($D$3,$E$3,B10,C10),"") -> 2.828427125 | E10: =force(eps,Sigma,D10) -> -0.0181019336 | F10: =IFERROR(ATAN2(B10-$D$3,C10-$E$3),"") -> 0.7853981634 | G10: =IFERROR(E10*COS(F10),"") -> -0.0128 | H10: =IFERROR(E10*SIN(F10),"") -> -0.0128 | I10: =IFERROR(G10/$H$3,"") -> -0.0064 | J10: =IFERROR(H10/$H$3,"") -> -0.0064 | K10: =$H$5*IF($K$8="x",HLOOKUP("Scale",absF_tab,MATCH(ABS(E10),absF_ID),0),1) -> 0.08 | L10: =(IF(ISNUMBER(L9),L9,$D$5)+I10*K10)*IF(ISNUMBER($N$8),$N$8,1) -> -0.000512 | M10: =(IF(ISNUMBER(M9),M9,$E$5)+J10*K10)*IF(ISNUMBER($M$8),$M$8,1) -> -0.100512
B11: =IF(ISNUMBER(B10),B10+L10*K10,$D5) -> 1.99995904 | C11: =IF(ISNUMBER(C10),C10+M10*K10,$E5) -> 1.99195904 | D11: =IF(AND(ISNUMBER(B11),ISNUMBER(C11)),dist($D$3,$E$3,B11,C11),"") -> 2.822718013 | E11: -0.01810137635 | F11: =IFERROR(ATAN2(B11-$D$3,C11-$E$3),"") -> 0.7833941169 | G11: =IFERROR(E11*COS(F11),"") -> -0.01282523125 | H11: =IFERROR(E11*SIN(F11),"") -> -0.01277392927 | I11: -0.006412615624 | J11: -0.006386964636 | K11: 0.08 | L11: =(IF(ISNUMBER(L10),L10,$D$5)+I11*K11)*IF(ISNUMBER($N$8),$N$8,1) -> -0.00102500925 | M11: =(IF(ISNUMBER(M10),M10,$E$5)+J11*K11)*IF(ISNUMBER($M$8),$M$8,1) -> -0.1010229572
B12: 1.999877039 | C12: 1.983877203 | D12: 2.816962359 | E12: -0.01809966949 | F12: 0.7813819142 | G12: -0.01284969723 | H12: -0.01274689439 | I12: -0.006424848617 | J12: -0.006373447195 | K12: 0.08 | L12: -0.001538997139 | M12: -0.1015328329
B13: 1.999753919 | C13: 1.975754577 | D13: 2.811160238 | E13: -0.01809675893 | F13: 0.7793614385 | G13: -0.01287335532 | H13: -0.01271886027 | I13: -0.006436677658 | J13: -0.006359430137 | K13: 0.08 | L13: -0.002053931352 | M13: -0.1020415874
B14: 1.999589605 | C14: 1.96759125 | D14: 2.805311732 | E14: -0.0180925886 | F14: 0.7773325716 | G14: -0.01289616112 | H14: -0.0126897908 | I14: -0.00644808056 | J14: -0.006344895401 | K14: 0.08 | L14: -0.002569777797 | M14: -0.102549179
B15: 1.999384023 | C15: 1.959387315 | D15: 2.799416925 | E15: -0.01808710038 | F15: 0.7752951938 | G15: -0.01291806847 | H15: -0.01265964878 | I15: -0.006459034235 | J15: -0.006329824389 | K15: 0.08 | L15: -0.003086500535 | M15: -0.1030555649
B16: 1.999137103 | C16: 1.95114287 | D16: 2.793475909 | E16: -0.01808023404 | F16: 0.7732491837 | G16: -0.01293902932 | H16: -0.01262839591 | I16: -0.006469514661 | J16: -0.006314197954 | K16: 0.08 | L16: -0.003604061708 | M16: -0.1035607008
B17: 1.998848778 | C17: 1.942858014 | D17: 2.78748878 | E17: -0.01807192715 | F17: 0.7711944184 | G17: -0.01295899368 | H17: -0.01259599276 | I17: -0.006479496841 | J17: -0.00629799638 | K17: 0.08 | L17: -0.004122421456 | M17: -0.1040645405
B18: 1.998518984 | C18: 1.934532851 | D18: 2.781455641 | E18: -0.018062115 | F18: 0.7691307732 | G18: -0.01297790955 | H18: -0.01256239873 | I18: -0.006488954773 | J18: -0.006281199367 | K18: 0.08 | L18: -0.004641537838 | M18: -0.1045670364
B19: 1.998147661 | C19: 1.926167488 | D19: 2.775376599 | E19: -0.01805073053 | F19: 0.767058122 | G19: -0.01299572281 | H19: -0.01252757204 | I19: -0.006497861407 | J19: -0.00626378602 | K19: 0.08 | L19: -0.00516136675 | M19: -0.1050681393
B20: 1.997734752 | C20: 1.917762037 | D20: 2.76925177 | E20: -0.01803770426 | F20: 0.7649763367 | G20: -0.01301237721 | H20: -0.01249146965 | I20: -0.006506188606 | J20: -0.006245734827 | K20: 0.08 | L20: -0.005681861839 | M20: -0.1055677981
B21: 1.997280203 | C21: 1.909316613 | D21: 2.763081276 | E21: -0.01802296416 | F21: 0.7628852878 | G21: -0.01302781421 | H21: -0.01245404729 | I21: -0.006513907104 | J21: -0.006227023646 | K21: 0.08 | L21: -0.006202974407 | M21: -0.10606596
B22: 1.996783965 | C22: 1.900831336 | D22: 2.756865244 | E22: -0.01800643561 | F22: 0.7607848438 | G22: -0.01304197293 | H22: -0.01241525937 | I22: -0.006520986465 | J22: -0.006207629686 | K22: 0.08 | L22: -0.006724653324 | M22: -0.1065625704
B23: 1.996245993 | C23: 1.892306331 | D23: 2.750603809 | E23: -0.01798804127 | F23: 0.7586748716 | G23: -0.01305479008 | H23: -0.01237505899 | I23: -0.006527395039 | J23: -0.006187529493 | K23: 0.08 | L23: -0.007246844927 | M23: -0.1070575727
B24: 1.995666245 | C24: 1.883741725 | D24: 2.744297113 | E24: -0.01796770104 | F24: 0.7565552363 | G24: -0.01306619982 | H24: -0.01233339786 | I24: -0.006533099911 | J24: -0.006166698929 | K24: 0.08 | L24: -0.00776949292 | M24: -0.1075509086
B25: 1.995044686 | C25: 1.875137652 | D25: 2.737945308 | E25: -0.01794533188 | F25: 0.7544258012 | G25: -0.01307613373 | H25: -0.01229022632 | I25: -0.006538066863 | J25: -0.006145113158 | K25: 0.08 | L25: -0.008292538269 | M25: -0.1080425177
B26: 1.994381282 | C26: 1.866494251 | D26: 2.731548551 | E26: -0.01792084778 | F26: 0.7522864277 | G26: -0.01308452063 | H26: -0.01224549325 | I26: -0.006542260317 | J26: -0.006122746626 | K26: 0.08 | L26: -0.008815919095 | M26: -0.1085323374
B27: 1.993676009 | C27: 1.857811664 | D27: 2.725107008 | E27: -0.01789415964 | F27: 0.7501369752 | G27: -0.01309128657 | H27: -0.01219914609 | I27: -0.006545643285 | J27: -0.006099573044 | K27: 0.08 | L27: -0.009339570557 | M27: -0.1090203033
B28: 1.992928843 | C28: 1.849090039 | D28: 2.718620854 | E28: -0.01786517516 | F28: 0.7479773017 | G28: -0.01309635465 | H28: -0.01215113074 | I28: -0.006548177324 | J28: -0.006075565371 | K28: 0.08 | L28: -0.009863424743 | M28: -0.1095063485
B29: 1.992139769 | C29: 1.840329532 | D29: 2.712090272 | E29: -0.0178337987 | F29: 0.7458072627 | G29: -0.01309964494 | H29: -0.01210139159 | I29: -0.006549822472 | J29: -0.006050695793 | K29: 0.08 | L29: -0.01038741054 | M29: -0.1099904042
B30: 1.991308776 | C30: 1.831530299 | D30: 2.705515456 | E30: -0.01779993123 | F30: 0.7436267121 | G30: -0.0131010744 | H30: -0.01204987142 | I30: -0.0065505372 | J30: -0.006024935711 | K30: 0.08 | L30: -0.01091145352 | M30: -0.110472399
B31: 1.99043586 | C31: 1.822692507 | D31: 2.698896606 | E31: -0.01776347017 | F31: 0.7414355018 | G31: -0.0131005567 | H31: -0.01199651143 | I31: -0.006550278351 | J31: -0.005998255714 | K31: 0.08 | L31: -0.01143547579 | M31: -0.1109522595
B32: 1.989521022 | C32: 1.813816327 | D32: 2.692233936 | E32: -0.01772430928 | F32: 0.7392334816 | G32: -0.01309800216 | H32: -0.01194125114 | I32: -0.006549001082 | J32: -0.005970625569 | K32: 0.08 | L32: -0.01195939587 | M32: -0.1114299095
B33: 1.98856427 | C33: 1.804901934 | D33: 2.685527667 | E33: -0.01768233855 | F33: 0.7370204994 | G33: -0.0130933176 | H33: -0.0118840284 | I33: -0.0065466588 | J33: -0.005942014198 | K33: 0.08 | L33: -0.01248312858 | M33: -0.1119052707
B34: 1.98756562 | C34: 1.795949512 | D34: 2.678778032 | E34: -0.01763744408 | F34: 0.7347964011 | G34: -0.01308640621 | H34: -0.01182477932 | I34: -0.006543203105 | J34: -0.005912389662 | K34: 0.08 | L34: -0.01300658482 | M34: -0.1123782618
B35: 1.986525093 | C35: 1.786959251 | D35: 2.671985275 | E35: -0.01758950791 | F35: 0.7325610304 | G35: -0.01307716744 | H35: -0.01176343828 | I35: -0.006538583719 | J35: -0.005881719142 | K35: 0.08 | L35: -0.01352967152 | M35: -0.1128487994
B36: 1.98544272 | C36: 1.777931347 | D36: 2.665149652 | E36: -0.01753840795 | F36: 0.730314229 | G36: -0.01306549685 | H36: -0.01169993784 | I36: -0.006532748423 | J36: -0.005849968921 | K36: 0.08 | L36: -0.0140522914 | M36: -0.1133167969
B37: 1.984318536 | C37: 1.768866004 | D37: 2.658271429 | E37: -0.01748401781 | F37: 0.7280558365 | G37: -0.01305128597 | H37: -0.01163420874 | I37: -0.006525642987 | J37: -0.005817104371 | K37: 0.08 | L37: -0.01457434283 | M37: -0.1137821652
B38: 1.983152589 | C38: 1.75976343 | D38: 2.651350886 | E38: -0.01742620666 | F38: 0.7257856903 | G38: -0.0130344222 | H38: -0.01156617986 | I38: -0.006517211101 | J38: -0.005783089928 | K38: 0.08 | L38: -0.01509571972 | M38: -0.1142448124
B39: 1.981944931 | C39: 1.750623845 | D39: 2.644388315 | E39: -0.01736483913 | F39: 0.7235036258 | G39: -0.0130147886 | H39: -0.01149577817 | I39: -0.006507394301 | J39: -0.005747889083 | K39: 0.08 | L39: -0.01561631127 | M39: -0.1147046435
B40: 1.980695626 | C40: 1.741447474 | D40: 2.63738402 | E40: -0.01729977512 | F40: 0.721209476 | G40: -0.01299226379 | H40: -0.01142292872 | I40: -0.006496131897 | J40: -0.005711464361 | K40: 0.08 | L40: -0.01613600182 | M40: -0.1151615607
B41: 1.979404746 | C41: 1.732234549 | D41: 2.630338321 | E41: -0.01723086967 | F41: 0.718903072 | G41: -0.01296672179 | H41: -0.01134755462 | I41: -0.006483360894 | J41: -0.005673777309 | K41: 0.08 | L41: -0.01665467069 | M41: -0.1156154629
B42: 1.978072373 | C42: 1.722985312 | D42: 2.62325155 | E42: -0.01715797286 | F42: 0.7165842425 | G42: -0.01293803184 | H42: -0.01126957695 | I42: -0.006469015919 | J42: -0.005634788477 | K42: 0.08 | L42: -0.01717219196 | M42: -0.116066246
B43: 1.976698597 | C43: 1.713700012 | D43: 2.616124056 | E43: -0.01708092957 | F43: 0.714252814 | G43: -0.01290605828 | H43: -0.01118891482 | I43: -0.006453029138 | J43: -0.005594457409 | K43: 0.08 | L43: -0.01768843429 | M43: -0.1165138026
B44: 1.975283523 | C44: 1.704378908 | D44: 2.608956201 | E44: -0.01699957942 | F44: 0.7119086107 | G44: -0.01287066035 | H44: -0.01110548525 | I44: -0.006435330174 | J44: -0.005552742626 | K44: 0.08 | L44: -0.01820326071 | M44: -0.116958022
B45: 1.973827262 | C45: 1.695022266 | D45: 2.601748363 | E45: -0.01691375656 | F45: 0.7095514548 | G45: -0.01283169206 | H45: -0.01101920324 | I45: -0.006415846028 | J45: -0.005509601618 | K45: 0.08 | L45: -0.01871652839 | M45: -0.1173987901
B46: 1.972329939 | C46: 1.685630363 | D46: 2.594500937 | E46: -0.01682328954 | F46: 0.707181166 | G46: -0.01278900199 | H46: -0.01092998166 | I46: -0.006394500994 | J46: -0.00546499083 | K46: 0.08 | L46: -0.01922808847 | M46: -0.1178359894
B47: 1.970791692 | C47: 1.676203484 | D47: 2.587214335 | E47: -0.01672800114 | F47: 0.7047975618 | G47: -0.01274243314 | H47: -0.01083773131 | I47: -0.00637121657 | J47: -0.005418865653 | K47: 0.08 | L47: -0.0197377858 | M47: -0.1182694986
B48: 1.969212669 | C48: 1.666741924 | D48: 2.579888986 | E48: -0.01662770823 | F48: 0.7024004572 | G48: -0.01269182275 | H48: -0.01074236084 | I48: -0.006345911375 | J48: -0.005371180421 | K48: 0.08 | L48: -0.02024545871 | M48: -0.118699193
B49: 1.967593033 | C49: 1.657245989 | D49: 2.572525337 | E49: -0.01652222161 | F49: 0.6999896653 | G49: -0.01263700212 | H49: -0.0106437768 | I49: -0.006318501058 | J49: -0.005321888398 | K49: 0.08 | L49: -0.02075093879 | M49: -0.1191249441
B50: 1.965932958 | C50: 1.647715993 | D50: 2.565123854 | E50: -0.01641134583 | F50: 0.6975649966 | G50: -0.01257779642 | H50: -0.01054188356 | I50: -0.006288898212 | J50: -0.00527094178 | K50: 0.08 | L50: -0.02125405065 | M50: -0.1195466195
B51: 1.964232634 | C51: 1.638152264 | D51: 2.557685023 | E51: -0.01629487906 | F51: 0.6951262594 | G51: -0.01251402456 | H51: -0.01043658338 | I51: -0.006257012281 | J51: -0.005218291691 | K51: 0.08 | L51: -0.02175461163 | M51: -0.1199640828
B52: 1.962492265 | C52: 1.628555137 | D52: 2.550209349 | E52: -0.01617261292 | F52: 0.6926732595 | G52: -0.01244549894 | H52: -0.01032777637 | I52: -0.006222749471 | J52: -0.005163888184 | K52: 0.08 | L52: -0.02225243159 | M52: -0.1203771938
B53: 1.96071207 | C53: 1.618924961 | D53: 2.542697358 | E53: -0.01604433235 | F53: 0.6902058007 | G53: -0.01237202532 | H53: -0.01021536049 | I53: -0.00618601266 | J53: -0.005107680245 | K53: 0.08 | L53: -0.0227473126 | M53: -0.1207858083
B54: 1.958892285 | C54: 1.609262097 | D54: 2.535149597 | E54: -0.01590981541 | F54: 0.6877236841 | G54: -0.01229340261 | H54: -0.01009923159 | I54: -0.006146701304 | J54: -0.005049615797 | K54: 0.08 | L54: -0.0232390487 | M54: -0.1211897775
B55: 1.957033161 | C55: 1.599566915 | D55: 2.527566638 | E55: -0.01576883319 | F55: 0.6852267089 | G55: -0.0122094227 | H55: -0.009979283427 | I55: -0.006104711349 | J55: -0.004989641713 | K55: 0.08 | L55: -0.02372742561 | M55: -0.1215889489
B56: 1.955134967 | C56: 1.589839799 | D56: 2.519949072 | E56: -0.01562114962 | F56: 0.6827146718 | G56: -0.01211987028 | H56: -0.009855407655 | I56: -0.006059935139 | J56: -0.004927703827 | K56: 0.08 | L56: -0.02421222042 | M56: -0.1219831652
B57: 1.95319799 | C57: 1.580081145 | D57: 2.512297517 | E57: -0.01546652135 | F57: 0.680187367 | G57: -0.01202452266 | H57: -0.009727493903 | I57: -0.006012261329 | J57: -0.004863746952 | K57: 0.08 | L57: -0.02469320133 | M57: -0.1223722649
B58: 1.951222533 | C58: 1.570291364 | D58: 2.504612613 | E58: -0.01530469761 | F58: 0.6776445868 | G58: -0.01192314959 | H58: -0.009595429794 | I58: -0.005961574794 | J58: -0.004797714897 | K58: 0.08 | L58: -0.02517012731 | M58: -0.1227560821
B59: 1.949208923 | C59: 1.560470878 | D59: 2.496895029 | E59: -0.01513542009 | F59: 0.6750861211 | G59: -0.01181551309 | H59: -0.009459101003 | I59: -0.005907756545 | J59: -0.004729550502 | K59: 0.08 | L59: -0.02564274784 | M59: -0.1231344462
B60: 1.947157503 | C60: 1.550620122 | D60: 2.489145457 | E60: -0.01495842281 | F60: 0.6725117574 | G60: -0.01170136729 | H60: -0.009318391315 | I60: -0.005850683643 | J60: -0.004659195657 | K60: 0.08 | L60: -0.02611080253 | M60: -0.1235071818
B61: 1.945068639 | C61: 1.540739547 | D61: 2.481364617 | E61: -0.01477343203 | F61: 0.6699212812 | G61: -0.01158045824 | H61: -0.009173182699 | I61: -0.005790229121 | J61: -0.00458659135 | K61: 0.08 | L61: -0.02657402086 | M61: -0.1238741091
B62: 1.942942718 | C62: 1.530829619 | D62: 2.473553259 | E62: -0.01458016612 | F62: 0.6673144757 | G62: -0.01145252381 | H62: -0.009023355394 | I62: -0.005726261903 | J62: -0.004511677697 | K62: 0.08 | L62: -0.02703212181 | M62: -0.1242350433
B63: 1.940780148 | C63: 1.520890815 | D63: 2.46571216 | E63: -0.01437833551 | F63: 0.6646911221 | G63: -0.01131729347 | H63: -0.008868788002 | I63: -0.005658646734 | J63: -0.004434394001 | K63: 0.08 | L63: -0.02748481355 | M63: -0.1245897949
B64: 1.938581363 | C64: 1.510923632 | D64: 2.457842127 | E64: -0.0141676426 | F64: 0.6620509993 | G64: -0.01117448822 | H64: -0.008709357599 | I64: -0.00558724411 | J64: -0.0043546788 | K64: 0.08 | L64: -0.02793179308 | M64: -0.1249381692
B65: 1.936346819 | C65: 1.500928578 | D65: 2.449944 | E65: -0.01394778169 | F65: 0.6593938843 | G65: -0.01102382043 | H65: -0.008544939863 | I65: -0.005511910216 | J65: -0.004272469932 | K65: 0.08 | L65: -0.0283727459 | M65: -0.1252799668
B66: 1.934077 | C66: 1.490906181 | D66: 2.442018649 | E66: -0.01371843899 | F66: 0.656719552 | G66: -0.01086499374 | H66: -0.008375409211 | I66: -0.005432496869 | J66: -0.004187704606 | K66: 0.08 | L66: -0.02880734565 | M66: -0.1256149831
B67: 1.931772412 | C67: 1.480856982 | D67: 2.434066978 | E67: -0.01347929255 | F67: 0.6540277755 | G67: -0.01069770295 | H67: -0.008200638958 | I67: -0.005348851473 | J67: -0.004100319479 | K67: 0.08 | L67: -0.02923525376 | M67: -0.1259430087
B68: 1.929433592 | C68: 1.470781541 | D68: 2.426089926 | E68: -0.01323001229 | F68: 0.6513183257 | G68: -0.01052163395 | H68: -0.008020501495 | I68: -0.005260816977 | J68: -0.004010250747 | K68: 0.08 | L68: -0.02965611912 | M68: -0.1262638287
B69: 1.927061102 | C69: 1.460680435 | D69: 2.418088465 | E69: -0.01297026005 | F69: 0.6485909722 | G69: -0.0103364637 | H69: -0.007834868481 | I69: -0.005168231848 | J69: -0.00391743424 | K69: 0.08 | L69: -0.03006957767 | M69: -0.1265772235
B70: 1.924655536 | C70: 1.450554257 | D70: 2.410063606 | E70: -0.01269968962 | F70: 0.6458454824 | G70: -0.0101418601 | H70: -0.007643611063 | I70: -0.005070930051 | J70: -0.003821805531 | K70: 0.08 | L70: -0.03047525207 | M70: -0.1268829679
B71: 1.922217516 | C71: 1.44040362 | D71: 2.402016396 | E71: -0.01241794683 | F71: 0.6430816222 | G71: -0.009937482088 | H71: -0.007446600113 | I71: -0.004968741044 | J71: -0.003723300057 | K71: 0.08 | L71: -0.03087275136 | M71: -0.1271808319
B72: 1.919747696 | C72: 1.430229153 | D72: 2.39394792 | E72: -0.01212466971 | F72: 0.6402991561 | G72: -0.009722979578 | H72: -0.007243706494 | I72: -0.004861489789 | J72: -0.003621853247 | K72: 0.08 | L72: -0.03126167054 | M72: -0.1274705802
B73: 1.917246762 | C73: 1.420031507 | D73: 2.385859306 | E73: -0.01181948863 | F73: 0.6374978471 | G73: -0.009497993549 | H73: -0.007034801341 | I73: -0.004748996775 | J73: -0.00351740067 | K73: 0.08 | L73: -0.03164159028 | M73: -0.1277519722
B74: 1.914715435 | C74: 1.409811349 | D74: 2.377751719 | E74: =force(eps,Sigma,D74) -> -0.01150202648 | F74: 0.6346774567 | G74: -0.009262156116 | H74: -0.006819756383 | I74: =IFERROR(G74/$H$3,"") -> -0.004631078058 | J74: =IFERROR(H74/$H$3,"") -> -0.003409878192 | K74: =$H$5*IF($K$8="x",HLOOKUP("Scale",absF_tab,MATCH(ABS(E74),absF_ID),0),1) -> 0.08 | L74: -0.03201207653 | M74: -0.1280247625
B75: =IF(ISNUMBER(B74),B74+L74*K74,$D69) -> 1.912154469 | C75: =IF(ISNUMBER(C74),C74+M74*K74,$E69) -> 1.399569368 | D75: =IF(AND(ISNUMBER(B75),ISNUMBER(C75)),dist($D$3,$E$3,B75,C75),"") -> 2.369626369 | E75: -0.01117189896 | F75: =IFERROR(ATAN2(B75-$D$3,C75-$E$3),"") -> 0.6318377454 | G75: =IFERROR(E75*COS(F75),"") -> -0.009015090652 | H75: =IFERROR(E75*SIN(F75),"") -> -0.006598444285 | I75: -0.004507545326 | J75: -0.003299222143 | K75: 0.08 | L75: =(IF(ISNUMBER(L74),L74,$D$5)+I75*K75)*IF(ISNUMBER($N$8),$N$8,1) -> -0.03237268015 | M75: =(IF(ISNUMBER(M74),M74,$E$5)+J75*K75)*IF(ISNUMBER($M$8),$M$8,1) -> -0.1282887003
B76: 1.909564654 | C76: 1.389306272 | D76: 2.361484509 | E76: -0.01082871488 | F76: 0.6289784726 | G76: -0.008756411957 | H76: -0.006370739019 | I76: -0.004378205978 | J76: -0.003185369509 | K76: 0.08 | L76: -0.03272293663 | M76: -0.1285435298
B77: 1.906946819 | C77: 1.37902279 | D77: 2.353327437 | E77: -0.01047207647 | F77: 0.6260993966 | G77: -0.008485726468 | H77: -0.006136516272 | I77: -0.004242863234 | J77: -0.003068258136 | K77: 0.08 | L77: -0.03306236569 | M77: -0.1287889905
B78: 1.90430183 | C78: 1.36871967 | D78: 2.345156497 | E78: -0.01010157983 | F78: 0.6232002752 | G78: -0.008202632521 | H78: -0.005895653884 | I78: -0.004101316261 | J78: -0.002947826942 | K78: 0.08 | L78: -0.03339047099 | M78: -0.1290248166
B79: 1.901630592 | C79: 1.358397685 | D79: 2.336973081 | E79: -0.009716815367 | F79: 0.6202808654 | G79: -0.00790672067 | H79: -0.005648032324 | I79: -0.003953360335 | J79: -0.002824016162 | K79: 0.08 | L79: -0.03370673982 | M79: -0.1292507379
B80: 1.898934053 | C80: 1.348057626 | D80: 2.328778629 | E80: -0.009317368387 | F80: 0.6173409239 | G80: -0.007597574066 | H80: -0.005393535201 | I80: -0.003798787033 | J80: -0.0026967676 | K80: 0.08 | L80: -0.03401064278 | M80: -0.1294664793
B81: 1.896213202 | C81: 1.337700308 | D81: 2.320574631 | E81: -0.008902819662 | F81: 0.6143802071 | G81: -0.007274768908 | H81: -0.005132049812 | I81: -0.003637384454 | J81: -0.002566024906 | K81: 0.08 | L81: -0.03430163354 | M81: -0.1296717613
B82: 1.893469071 | C82: 1.327326567 | D82: 2.312362631 | E82: -0.008472746148 | F82: 0.6113984714 | G82: -0.006937874952 | H82: -0.004863467738 | I82: -0.003468937476 | J82: -0.002431733869 | K82: 0.08 | L82: -0.03457914853 | M82: -0.1298663
B83: 1.890702739 | C83: 1.316937263 | D83: 2.304144223 | E83: -0.008026721758 | F83: 0.6083954735 | G83: -0.006586456117 | H83: -0.004587685473 | I83: -0.003293228059 | J83: -0.002293842737 | K83: 0.08 | L83: -0.03484260678 | M83: -0.1300498075
B84: 1.887915331 | C84: 1.306533278 | D84: 2.295921058 | E84: -0.007564318231 | F84: 0.6053709704 | G84: -0.006220071159 | H84: -0.004304605101 | I84: -0.00311003558 | J84: -0.00215230255 | K84: 0.08 | L84: -0.03509140963 | M84: -0.1302219917
B85: 1.885108018 | C85: 1.296115519 | D85: 2.287694839 | E85: -0.0070851061 | F85: 0.6023247199 | G85: -0.005838274444 | H85: -0.00401413502 | I85: -0.002919137222 | J85: -0.00200706751 | K85: 0.08 | L85: -0.0353249406 | M85: -0.1303825571
B86: 1.882282023 | C86: 1.285684914 | D86: 2.279467331 | E86: -0.006588655759 | F86: 0.5992564808 | G86: -0.005440616815 | H86: -0.003716190709 | I86: -0.002720308408 | J86: -0.001858095354 | K86: 0.08 | L86: -0.03554256528 | M86: -0.1305312047
B87: 1.879438617 | C87: 1.275242418 | D87: 2.271240353 | E87: -0.00607453865 | F87: 0.5961660131 | G87: -0.005026646567 | H87: -0.003410695546 | I87: -0.002513323283 | J87: -0.001705347773 | K87: 0.08 | L87: -0.03574363114 | M87: -0.1306676325
B88: 1.876579127 | C88: 1.264789007 | D88: 2.263015787 | E88: -0.005542328553 | F88: 0.5930530784 | G88: -0.004595910526 | H88: -0.003097581673 | I88: -0.002297955263 | J88: -0.001548790837 | K88: 0.08 | L88: -0.03592746756 | M88: -0.1307915358
B89: 1.87370493 | C89: 1.254325684 | D89: 2.254795575 | E89: -0.004991603008 | F89: 0.5899174403 | G89: -0.004147955258 | H89: -0.002776790911 | I89: -0.002073977629 | J89: -0.001388395456 | K89: 0.08 | L89: -0.03609338577 | M89: -0.1309026074
B90: 1.870817459 | C90: 1.243853476 | D90: 2.246581722 | E90: -0.004421944869 | F90: 0.5867588645 | G90: -0.003682328393 | H90: -0.002448275725 | I90: -0.001841164196 | J90: -0.001224137863 | K90: 0.08 | L90: -0.03624067891 | M90: -0.1310005384
B91: 1.867918204 | C91: 1.233373433 | D91: 2.238376296 | E91: -0.003832943987 | F91: 0.5835771193 | G91: -0.003198580088 | H91: -0.002112000244 | I91: -0.001599290044 | J91: -0.001056000122 | K91: 0.08 | L91: -0.03636862211 | M91: -0.1310850185
B92: 1.865008715 | C92: 1.222886631 | D92: 2.230181432 | E92: -0.003224199045 | F92: 0.5803719761 | G92: -0.002696264631 | H92: -0.001767941322 | I92: -0.001348132316 | J92: -0.0008839706609 | K92: 0.08 | L92: -0.03647647269 | M92: -0.1311557361
B93: 1.862090597 | C93: 1.212394172 | D93: 2.221999329 | E93: -0.002595319536 | F93: 0.5771432098 | G93: -0.002174942197 | H93: -0.001416089662 | I93: -0.001087471098 | J93: -0.0007080448312 | K93: 0.08 | L93: -0.03656347038 | M93: -0.1312123797
B94: 1.859165519 | C94: 1.201897182 | D94: 2.213832257 | E94: -0.001945927901 | F94: 0.5738905989 | G94: -0.001634180749 | H94: -0.001056450981 | I94: -0.0008170903745 | J94: -0.0005282254907 | K94: 0.08 | L94: -0.03662883761 | M94: -0.1312546377
B95: 1.856235212 | C95: 1.191396811 | D95: 2.205682553 | E95: -0.00127566183 | F95: 0.5706139263 | G95: -0.001073558117 | H95: -0.0006890472224 | I95: -0.0005367790585 | J95: -0.0003445236112 | K95: 0.08 | L95: -0.03667177994 | M95: -0.1312821996
B96: 1.85330147 | C96: 1.180894235 | D96: 2.197552623 | E96: -0.0005841767247 | F96: 0.5673129799 | G96: -0.0004926642352 | H96: -0.0003139178189 | I96: -0.0002463321176 | J96: -0.0001569589094 | K96: 0.08 | L96: -0.03669148651 | M96: -0.1312947563
B97: 1.850366151 | C97: 1.170390655 | D97: 2.189444947 | E97: 0.0001288516637 | F97: 0.5639875525 | G97: 0.0001088964385 | H97: 6.887900208e-05 | I97: 5.444821926e-05 | J97: 3.443950104e-05 | K97: 0.08 | L97: -0.03668713065 | M97: -0.1312920012
B98: 1.84743118 | C98: 1.159887294 | D98: 2.181362075 | E98: 0.0008637244195 | F98: 0.560637443 | G98: 0.0007315023224 | H98: 0.0004592648747 | I98: 0.0003657511612 | J98: 0.0002296324374 | K98: 0.08 | L98: -0.03665787056 | M98: -0.1312736306
B99: 1.844498551 | C99: 1.149385404 | D99: 2.173306631 | E99: 0.001620716473 | F99: 0.5572624564 | G99: 0.001375511924 | H99: 0.0008571399136 | I99: 0.000687755962 | J99: 0.0004285699568 | K99: 0.08 | L99: -0.03660285008 | M99: -0.131239345
B100: 1.841570323 | C100: 1.138886256 | D100: 2.165281312 | E100: 0.002400073427 | F100: 0.553862405 | G100: 0.002041260862 | H100: 0.001262381302 | I100: 0.001020630431 | J100: 0.0006311906508 | K100: 0.08 | L100: -0.03652119964 | M100: -0.1311888497
B101: 1.838648627 | C101: 1.128391148 | D101: 2.15728889 | E101: 0.00320200821 | F101: 0.5504371083 | G101: 0.002729058692 | H101: 0.001674841852 | I101: 0.001364529346 | J101: 0.0008374209262 | K101: 0.08 | L101: -0.0364120373 | M101: -0.1311218561
B102: 1.835735664 | C102: 1.1179014 | D102: 2.149332214 | E102: 0.004026697537 | F102: 0.5469863941 | G102: 0.003439185542 | H102: 0.002094348554 | I102: 0.001719592771 | J102: 0.001047174277 | K102: 0.08 | L102: -0.03627446987 | M102: -0.1310380821
B103: 1.832833706 | C103: 1.107418353 | D103: 2.141414206 | E103: 0.004874278209 | F103: 0.543510099 | G103: 0.004171888543 | H103: 0.002520701101 | I103: 0.002085944272 | J103: 0.00126035055 | K103: 0.08 | L103: -0.03610759433 | M103: -0.1309372541
B104: 1.829945099 | C104: 1.096943373 | D104: 2.133537866 | E104: 0.005744843225 | F104: 0.5400080693 | G104: 0.004927378073 | H104: 0.002953670429 | I104: 0.002463689037 | J104: 0.001476835214 | K104: 0.08 | L104: -0.03591049921 | M104: -0.1308191073
B105: 1.827072259 | C105: 1.086477844 | D105: 2.12570627 | E105: 0.006638437742 | F105: 0.5364801611 | G105: 0.005705823807 | H105: 0.003392997251 | I105: 0.002852911904 | J105: 0.001696498625 | K105: 0.08 | L105: -0.03568226626 | M105: -0.1306833874
B106: 1.824217677 | C106: 1.076023173 | D106: 2.117922568 | E106: 0.00755505487 | F106: 0.5329262417 | G106: 0.006507350578 | H106: 0.003838390619 | I106: 0.003253675289 | J106: 0.00191919531 | K106: 0.08 | L106: -0.03542197223 | M106: -0.1305298517
B107: 1.82138392 | C107: 1.065580785 | D107: 2.11018999 | E107: 0.008494631325 | F107: 0.5293461902 | G107: 0.00733203407 | H107: 0.004289526518 | I107: 0.003666017035 | J107: 0.002144763259 | K107: 0.08 | L107: -0.03512869087 | M107: -0.1303582707
B108: 1.818573624 | C108: 1.055152124 | D108: 2.102511839 | E108: 0.009457042954 | F108: 0.525739898 | G108: 0.008179896334 | H108: 0.004746046502 | I108: 0.004089948167 | J108: 0.002373023251 | K108: 0.08 | L108: -0.03480149502 | M108: -0.1301684288
B109: 1.815789505 | C109: 1.044738649 | D109: 2.094891494 | E109: 0.01044210015 | F109: 0.5221072698 | G109: 0.009050901161 | H109: 0.005207556399 | I109: 0.004525450581 | J109: 0.002603778199 | K109: 0.08 | L109: -0.03443945897 | M109: -0.1299601266
B110: 1.813034348 | C110: 1.034341839 | D110: 2.087332409 | E110: 0.01144954316 | F110: 0.5184482243 | G110: 0.009944949316 | H110: 0.00567362509 | I110: 0.004972474658 | J110: 0.002836812545 | K110: 0.08 | L110: -0.034041661 | M110: -0.1297331816
B111: 1.810311015 | C111: 1.023963185 | D111: 2.079838113 | E111: 0.01247903737 | F111: 0.5147626955 | G111: 0.01086187366 | H111: 0.00614378339 | I111: 0.00543093683 | J111: 0.003071891695 | K111: 0.08 | L111: -0.03360718605 | M111: -0.1294874302
B112: 1.80762244 | C112: 1.01360419 | D112: 2.072412203 | E112: 0.01353016851 | F112: 0.5110506327 | G112: 0.01180143418 | H112: 0.006617523036 | I112: 0.005900717091 | J112: 0.003308761518 | K112: 0.08 | L112: -0.03313512869 | M112: -0.1292227293
B113: 1.80497163 | C113: 1.003266372 | D113: 2.065058352 | E113: 0.01460243786 | F113: 0.5073120024 | G113: 0.01276331298 | H113: 0.007094295829 | I113: 0.006381656489 | J113: 0.003547147914 | K113: 0.08 | L113: -0.03262459617 | M113: -0.1289389575
B114: 1.802361662 | C114: 0.9929512553 | D114: 2.057780299 | E114: 0.01569525753 | F114: 0.5035467883 | G114: 0.01374710919 | H114: 0.007573512916 | I114: 0.006873554595 | J114: 0.003786756458 | K114: 0.08 | L114: -0.0320747118 | M114: -0.128636017
B115: 1.799795685 | C115: 0.982660374 | D115: 2.050581849 | E115: 0.01680794577 | F115: 0.4997549928 | G115: 0.01475233398 | H115: 0.00805454427 | I115: 0.007376166989 | J115: 0.004027272135 | K115: 0.08 | L115: -0.03148461844 | M115: -0.1283138352
B116: 1.797276916 | C116: 0.9723952672 | D116: 2.043466875 | E116: 0.01793972244 | F116: 0.4959366376 | G116: 0.01577840552 | H116: 0.008536718364 | I116: 0.007889202761 | J116: 0.004268359182 | K116: 0.08 | L116: -0.03085348222 | M116: -0.1279723664
B117: 1.794808637 | C117: 0.9621574779 | D117: 2.036439308 | E117: 0.0190897046 | F117: 0.4920917648 | G117: 0.01682464415 | H117: 0.009019322087 | I117: 0.008412322077 | J117: 0.004509661044 | K117: 0.08 | L117: -0.03018049645 | M117: -0.1276115936
B118: 1.792394198 | C118: 0.9519485504 | D118: 2.029503142 | E118: 0.0202569024 | F118: 0.4882204376 | G118: 0.01789026761 | H118: 0.0095016009 | I118: 0.008945133807 | J118: 0.00475080045 | K118: 0.08 | L118: -0.02946488575 | M118: -0.1272315295
B119: 1.790037007 | C119: 0.941770028 | D119: 2.022662421 | E119: 0.0214402152 | F119: 0.4843227418 | G119: 0.01897438654 | H119: 0.009982759284 | I119: 0.009487193272 | J119: 0.004991379642 | K119: 0.08 | L119: -0.02870591029 | M119: -0.1268322192
B120: 1.787740534 | C120: 0.9316234505 | D120: 2.015921246 | E120: 0.02263842803 | F120: 0.4803987858 | G120: 0.02007600024 | H120: 0.01046196149 | I120: 0.01003800012 | J120: 0.005230980744 | K120: 0.08 | L120: -0.02790287028 | M120: -0.1264137407
B121: 1.785508304 | C121: 0.9215103512 | D121: 2.009283761 | E121: 0.02385020856 | F121: 0.4764487023 | G121: 0.02119399274 | H121: 0.0109383326 | I121: 0.01059699637 | J121: 0.005469166301 | K121: 0.08 | L121: -0.02705511057 | M121: -0.1259762074
B122: 1.783343895 | C122: 0.9114322546 | D122: 2.002754155 | E122: 0.02507410442 | F122: 0.4724726489 | G122: 0.02232712934 | H122: 0.01141095999 | I122: 0.01116356467 | J122: 0.005705479994 | K122: 0.08 | L122: -0.02616202539 | M122: -0.125519769
B123: 1.781250933 | C123: 0.9013906731 | D123: 1.996336653 | E123: 0.02630854116 | F123: 0.4684708089 | G123: 0.02347405355 | H123: 0.01187889507 | I123: 0.01173702678 | J123: 0.005939447535 | K123: 0.08 | L123: -0.02522306325 | M123: -0.1250446132
B124: 1.779233088 | C124: 0.8913871041 | D124: 1.990035515 | E124: 0.02755182086 | F124: 0.4644433923 | G124: 0.02463328466 | H124: 0.01234115553 | I124: 0.01231664233 | J124: 0.006170577767 | K124: 0.08 | L124: -0.02423773186 | M124: -0.124550967
B125: 1.77729407 | C125: 0.8814230267 | D125: 1.983855026 | E125: 0.02880212137 | F125: 0.4603906367 | G125: 0.02580321589 | H125: 0.01279672792 | I125: 0.01290160794 | J125: 0.00639836396 | K125: 0.08 | L125: -0.02320560323 | M125: -0.1240390979
B126: 1.775437622 | C126: 0.8714998989 | D126: 1.97779949 | E126: 0.03005749639 | F126: 0.4563128079 | G126: 0.02698211329 | H126: 0.01324457064 | I126: 0.01349105664 | J126: 0.006622285322 | K126: 0.08 | L126: -0.0221263187 | M126: -0.123509315
B127: 1.773667516 | C127: 0.8616191537 | D127: 1.971873227 | E127: 0.03131587637 | F127: 0.4522102006 | G127: 0.02816811542 | H127: 0.01368361745 | I127: 0.01408405771 | J127: 0.006841808724 | K127: 0.08 | L127: -0.02099959408 | M127: -0.1229619703
B128: 1.771987548 | C128: 0.851782196 | D128: 1.966080563 | E128: 0.03257507038 | F128: 0.4480831393 | G128: 0.02935923389 | H128: 0.01411278129 | I128: 0.01467961694 | J128: 0.007056390644 | K128: 0.08 | L128: -0.01982522473 | M128: -0.1223974591
B129: 1.770401531 | C129: 0.8419903993 | D129: 1.960425824 | E129: 0.03383276891 | F129: 0.443931979 | G129: 0.03055335485 | H129: 0.01453095866 | I129: 0.01527667743 | J129: 0.00726547933 | K129: 0.08 | L129: -0.01860309053 | M129: -0.1218162207
B130: 1.768913283 | C130: 0.8322451017 | D130: 1.954913326 | E130: 0.03508654778 | F130: 0.4397571055 | G130: 0.03174824152 | H130: 0.01493703436 | I130: 0.01587412076 | J130: 0.007468517181 | K130: 0.08 | L130: -0.01733316087 | M130: -0.1212187394
B131: 1.76752663 | C131: 0.8225476025 | D131: 1.94954737 | E131: 0.03633387311 | F131: 0.4355589361 | G131: 0.03294153776 | H131: 0.01532988666 | I131: 0.01647076888 | J131: 0.007664943329 | K131: 0.08 | L131: -0.01601549936 | M131: -0.1206055439
B132: 1.76624539 | C132: 0.812899159 | D132: 1.94433223 | E132: 0.03757210747 | F132: 0.43133792 | G132: 0.03413077281 | H132: 0.01570839288 | I132: 0.01706538641 | J132: 0.00785419644 | K132: 0.08 | L132: -0.01465026845 | M132: -0.1199772082
B133: 1.765073369 | C133: 0.8033009823 | D133: 1.939272149 | E133: 0.03879851724 | F133: 0.4270945388 | G133: 0.03531336723 | H133: 0.01607143538 | I133: 0.01765668361 | J133: 0.008035717688 | K133: 0.08 | L133: -0.01323773376 | M133: -0.1193343508
B134: 1.76401435 | C134: 0.7937542343 | D134: 1.934371322 | E134: 0.04001028113 | F134: 0.4228293065 | G134: 0.03648664 | H134: 0.01641790782 | I134: 0.01824332 | J134: 0.00820895391 | K134: 0.08 | L134: -0.01177826816 | M134: -0.1186776344
B135: 1.763072089 | C135: 0.7842600235 | D135: 1.929633897 | E135: 0.04120449996 | F135: 0.4185427697 | G135: 0.037647817 | H135: 0.01674672183 | I135: 0.0188239085 | J135: 0.008373360917 | K135: 0.08 | L135: -0.01027235548 | M135: -0.1180077656
B136: 1.7622503 | C136: 0.7748194023 | D136: 1.925063954 | E136: 0.04237820768 | F136: 0.4142355082 | G136: 0.03879404061 | H136: 0.01705681387 | I136: 0.01939702031 | J136: 0.008528406933 | K136: 0.08 | L136: -0.008720593854 | M136: -0.117325493
B137: 1.761552653 | C137: 0.7654333628 | D137: 1.920665505 | E137: 0.04352838353 | F137: 0.4099081341 | G137: 0.0399223807 | H137: 0.01734715228 | I137: 0.01996119035 | J137: 0.008673576138 | K137: 0.08 | L137: -0.007123698626 | M137: -0.1166316069
B138: 1.760982757 | C138: 0.7561028343 | D138: 1.916442477 | E138: =force(eps,Sigma,D138) -> 0.04465196538 | F138: 0.4055612924 | G138: 0.04102984674 | H138: 0.01761674456 | I138: =IFERROR(G138/$H$3,"") -> 0.02051492337 | J138: =IFERROR(H138/$H$3,"") -> 0.008808372282 | K138: =$H$5*IF($K$8="x",HLOOKUP("Scale",absF_tab,MATCH(ABS(E138),absF_ID),0),1) -> 0.08 | L138: -0.005482504756 | M138: -0.1159269371
B139: =IF(ISNUMBER(B138),B138+L138*K138,$D133) -> 1.760544157 | C139: =IF(ISNUMBER(C138),C138+M138*K138,$E133) -> 0.7468286793 | D139: =IF(AND(ISNUMBER(B139),ISNUMBER(C139)),dist($D$3,$E$3,B139,C139),"") -> 1.912398704 | E139: 0.04574586423 | F139: =IFERROR(ATAN2(B139-$D$3,C139-$E$3),"") -> 0.4011956603 | G139: =IFERROR(E139*COS(F139),"") -> 0.04211340124 | H139: =IFERROR(E139*SIN(F139),"") -> 0.0178646447 | I139: 0.02105670062 | J139: 0.008932322348 | K139: 0.08 | L139: =(IF(ISNUMBER(L138),L138,$D$5)+I139*K139)*IF(ISNUMBER($N$8),$N$8,1) -> -0.003797968707 | M139: =(IF(ISNUMBER(M138),M138,$E$5)+J139*K139)*IF(ISNUMBER($M$8),$M$8,1) -> -0.1152123514
B140: 1.760240319 | C140: 0.7376116912 | D140: 1.908537919 | E140: 0.04680697961 | F140: 0.396811947 | G140: 0.0431699742 | H140: 0.01808996041 | I140: 0.0215849871 | J140: 0.009044980204 | K140: 0.08 | L140: -0.002071169739 | M140: -0.1144887529
B141: 1.760074626 | C141: 0.728452591 | D141: 1.904863739 | E141: 0.04783221605 | F141: 0.3924108933 | G141: 0.04419647874 | H141: 0.01829186046 | I141: 0.02209823937 | J141: 0.00914593023 | K141: 0.08 | L141: -0.000303310589 | M141: -0.1137570785
B142: 1.760050361 | C142: 0.7193520247 | D142: 1.901379659 | E142: 0.04881850024 | F142: 0.3879932704 | G142: 0.04518982758 | H142: 0.01846958172 | I142: 0.02259491379 | J142: 0.009234790859 | K142: 0.08 | L142: 0.001504282514 | M142: -0.1130182953
B143: 1.760170703 | C143: 0.7103105611 | D143: 1.898089038 | E143: 0.04976279894 | F143: 0.3835598799 | G143: 0.04614695045 | H143: 0.018622436 | I143: 0.02307347522 | J143: 0.009311217998 | K143: 0.08 | L143: 0.003350160532 | M143: -0.1122733978
B144: 1.760438716 | C144: 0.7013286892 | D144: 1.894995093 | E144: 0.05066213739 | F144: 0.3791115525 | G144: 0.04706481215 | H144: 0.01874981657 | I144: 0.02353240608 | J144: 0.009374908287 | K144: 0.08 | L144: 0.005232753018 | M144: -0.1115234052
B145: 1.760857336 | C145: 0.6924068168 | D145: 1.892100885 | E145: 0.05151361805 | F145: 0.3746491469 | G145: 0.04794043118 | H145: 0.01885120428 | I145: 0.02397021559 | J145: 0.009425602139 | K145: 0.08 | L145: 0.007150370265 | M145: -0.110769357
B146: 1.761429366 | C146: 0.6835452683 | D146: 1.889409311 | E146: 0.05231443955 | F146: 0.3701735487 | G146: 0.04877089869 | H146: 0.01892617307 | I146: 0.02438544934 | J146: 0.009463086534 | K146: 0.08 | L146: 0.009101206213 | M146: -0.1100123101
B147: 1.762157462 | C147: 0.6747442835 | D147: 1.886923096 | E147: 0.05306191559 | F147: 0.3656856692 | G147: 0.04955339766 | H147: 0.01897439503 | I147: 0.02477669883 | J147: 0.009487197515 | K147: 0.08 | L147: 0.01108334212 | M147: -0.1092533343
B148: 1.76304413 | C148: 0.6660040167 | D148: 1.884644782 | E148: 0.05375349357 | F148: 0.3611864439 | G148: 0.05028522203 | H148: 0.01899564468 | I148: 0.02514261101 | J148: 0.009497822342 | K148: 0.08 | L148: 0.013094751 | M148: -0.1084935085
B149: 1.76409171 | C149: 0.657324536 | D149: 1.88257672 | E149: 0.05438677284 | F149: 0.356676831 | G149: 0.05096379557 | H149: 0.01898980256 | I149: 0.02548189778 | J149: 0.009494901282 | K149: 0.08 | L149: 0.01513330282 | M149: -0.1077339164
B150: 1.765302374 | C150: 0.6487058227 | D150: 1.880721063 | E150: 0.05495952221 | F150: 0.3521578097 | G150: 0.05158669032 | H150: 0.01895685797 | I150: 0.02579334516 | J150: 0.009478428986 | K150: 0.08 | L150: 0.01719677044 | M150: -0.106975642
B151: 1.766678116 | C151: 0.6401477714 | D151: 1.879079757 | E151: 0.05546969665 | F151: 0.3476303784 | G151: 0.05215164433 | H151: 0.01889691087 | I151: 0.02607582216 | J151: 0.009448455435 | K151: 0.08 | L151: 0.01928283621 | M151: -0.1062197656
B152: 1.768220743 | C152: 0.6316501901 | D152: 1.877654536 | E152: 0.05591545283 | F152: 0.3430955531 | G152: 0.05265657852 | H152: 0.01881017287 | I152: 0.02632828926 | J152: 0.009405086433 | K152: 0.08 | L152: 0.02138909935 | M152: -0.1054673587
B153: 1.769931871 | C153: 0.6232128014 | D153: 1.876446914 | E153: 0.05629516339 | F153: 0.3385543649 | G153: 0.0530996124 | H153: 0.01869696724 | I153: 0.0265498062 | J153: 0.009348483619 | K153: 0.08 | L153: 0.02351308385 | M153: -0.10471948
B154: 1.771812917 | C154: 0.614835243 | D154: 1.875458181 | E154: 0.05660742975 | F154: 0.3340078584 | G154: 0.05347907847 | H154: 0.01855772801 | I154: 0.02673953924 | J154: 0.009278864006 | K154: 0.08 | L154: 0.02565224698 | M154: -0.1039771709
B155: 1.773865097 | C155: 0.6065170694 | D155: 1.874689398 | E155: 0.05685109324 | F155: 0.3294570896 | G155: 0.05379353516 | H155: 0.01839299806 | I155: 0.02689676758 | J155: 0.009196499031 | K155: 0.08 | L155: 0.02780398839 | M155: -0.103241451
B156: 1.776089416 | C156: 0.5982577533 | D156: 1.874141391 | E156: 0.05702524437 | F156: 0.3249031233 | G156: 0.05404177799 | H156: 0.01820342624 | I156: 0.027020889 | J156: 0.00910171312 | K156: 0.08 | L156: 0.02996565951 | M156: -0.1025133139
B157: 1.778486669 | C157: 0.5900566882 | D157: 1.873814753 | E157: 0.05712923025 | F157: 0.3203470314 | G157: 0.05422284902 | H157: 0.01798976359 | I157: 0.02711142451 | J157: 0.008994881793 | K157: 0.08 | L157: 0.03213457347 | M157: -0.1017937234
B158: 1.781057435 | C158: 0.5819131903 | D158: 1.873709835 | E158: 0.05716265991 | F158: 0.3157898901 | G158: 0.05433604419 | H158: 0.01775285861 | I158: 0.0271680221 | J158: 0.008876429307 | K158: 0.08 | L158: 0.03430801524 | M158: -0.101083609
B159: 1.783802076 | C159: 0.5738265016 | D159: 1.873826753 | E159: 0.05712540745 | F159: 0.311232778 | G159: 0.05438091875 | H159: 0.01749365178 | I159: 0.02719045937 | J159: 0.008746825889 | K159: 0.08 | L159: 0.03648325199 | M159: -0.100383863
B160: 1.786720736 | C160: 0.5657957925 | D160: 1.874165379 | E160: 0.05701761315 | F160: 0.3066767735 | G160: 0.05435729039 | H160: 0.01721316912 | I160: 0.0271786452 | J160: 0.008606584559 | K160: 0.08 | L160: 0.0386575436 | M160: -0.09969533619
B161: 1.78981334 | C161: 0.5578201656 | D161: 1.874725347 | E161: 0.05683968227 | F161: 0.3021229529 | G161: 0.05426524034 | H161: 0.01691251522 | I161: 0.02713262017 | J161: 0.008456257612 | K161: 0.08 | L161: 0.04082815322 | M161: -0.09901883559
B162: 1.793079592 | C162: 0.5498986588 | D162: 1.875506054 | E162: 0.05659228173 | F162: 0.2975723875 | G162: 0.05410511217 | H162: 0.01659286557 | I162: 0.02705255609 | J162: 0.008296432783 | K162: 0.08 | L162: 0.04299235771 | M162: -0.09835512096
B163: 1.796518981 | C163: 0.5420302491 | D163: 1.876506658 | E163: 0.05627633469 | F163: 0.2930261418 | G163: 0.0538775085 | H163: 0.01625545829 | I163: 0.02693875425 | J163: 0.008127729144 | K163: 0.08 | L163: 0.04514745805 | M163: -0.09770490263
B164: 1.800130777 | C164: 0.5342138569 | D164: 1.877726088 | E164: 0.05589301308 | F164: 0.2884852712 | G164: 0.05358328552 | H164: 0.01590158559 | I164: 0.02679164276 | J164: 0.007950792793 | K164: 0.08 | L164: 0.04729078947 | M164: -0.09706883921
B165: 1.80391404 | C165: 0.5264483498 | D165: 1.87916304 | E165: 0.05544372815 | F165: 0.2839508197 | G165: 0.05322354555 | H165: 0.01553258476 | I165: 0.02661177278 | J165: 0.007766292378 | K165: 0.08 | L165: 0.04941973129 | M165: -0.09644753582
B166: 1.807867619 | C166: 0.5187325469 | D166: 1.880815988 | E166: 0.05493011927 | F166: 0.2794238176 | G166: 0.05279962768 | H166: 0.01514982903 | I166: 0.02639981384 | J166: 0.007574914517 | K166: 0.08 | L166: 0.0515317164 | M166: -0.09584154266
B167: 1.811990156 | C167: 0.5110652235 | D167: 1.882683189 | E167: 0.05435404108 | F167: 0.2749052799 | G167: 0.05231309653 | H167: 0.01475471833 | I167: 0.02615654827 | J167: 0.007377359165 | K167: 0.08 | L167: 0.05362424026 | M167: -0.09525135392
B168: 1.816280095 | C168: 0.5034451152 | D168: 1.884762682 | E168: 0.05371754908 | F168: 0.2703962041 | G168: 0.05176572949 | H168: 0.01434866996 | I168: 0.02588286475 | J168: 0.007174334981 | K168: 0.08 | L168: 0.05569486944 | M168: -0.09467740712
B169: 1.820735685 | C169: 0.4958709226 | D169: 1.887052306 | E169: 0.05302288407 | F169: 0.2658975683 | G169: 0.05115950248 | H169: 0.01393310952 | I169: 0.02557975124 | J169: 0.006966554758 | K169: 0.08 | L169: 0.05774124954 | M169: -0.09412008274
B170: 1.825354985 | C170: 0.488341316 | D170: 1.889549698 | E170: 0.05227245537 | F170: 0.2614103295 | G170: 0.05049657444 | H170: 0.0135094619 | I170: 0.02524828722 | J170: 0.006754730948 | K170: 0.08 | L170: 0.05976111251 | M170: -0.09357970427
B171: 1.830135874 | C171: 0.4808549396 | D171: 1.892252306 | E171: 0.05146882329 | F171: 0.2569354219 | G171: 0.04977927076 | H171: 0.01307914269 | I171: 0.02488963538 | J171: 0.006539571344 | K171: 0.08 | L171: 0.06175228334 | M171: -0.09305653856
B172: 1.835076057 | C172: 0.4734104166 | D172: 1.895157396 | E172: 0.05061468082 | F172: 0.2524737555 | G172: 0.04901006591 | H172: 0.01264354991 | I172: 0.02450503296 | J172: 0.006321774957 | K172: 0.08 | L172: 0.06371268598 | M172: -0.09255079656
B173: 1.840173071 | C173: 0.4660063528 | D173: 1.898262061 | E173: 0.04971283505 | F173: 0.2480262145 | G173: 0.04819156544 | H173: 0.01220405624 | I173: 0.02409578272 | J173: 0.006102028118 | K173: 0.08 | L173: 0.0656403486 | M173: -0.09206263431
B174: 1.845424299 | C174: 0.4586413421 | D174: 1.901563232 | E174: 0.04876618815 | F174: 0.2435936561 | G174: 0.04732648754 | H174: 0.01176200171 | I174: 0.02366324377 | J174: 0.005881000854 | K174: 0.08 | L174: 0.0675334081 | M174: -0.09159215425
B175: 1.850826972 | C175: 0.4513139697 | D175: 1.905057684 | E175: 0.04777771854 | F175: 0.2391769094 | G175: 0.0464176444 | H175: 0.01131868709 | I175: 0.0232088222 | J175: 0.005659343547 | K175: 0.08 | L175: 0.06939011387 | M175: -0.09113940676
B176: 1.856378181 | C176: 0.4440228172 | D176: 1.90874205 | E176: 0.04675046209 | F176: 0.2347767743 | G176: 0.04546792364 | H176: 0.01087536783 | I176: 0.02273396182 | J176: 0.005437683914 | K176: 0.08 | L176: 0.07120883082 | M176: -0.09070439205
B177: 1.862074888 | C177: 0.4367664658 | D177: 1.912612829 | E177: 0.04568749375 | F177: 0.2303940206 | G177: 0.04448026988 | H177: 0.01043324863 | I177: 0.02224013494 | J177: 0.005216624316 | K177: 0.08 | L177: 0.07298804162 | M177: -0.0902870621
B178: 1.867913931 | C178: 0.4295435009 | D178: 1.916666396 | E178: 0.04459190972 | F178: 0.2260293872 | G178: 0.04345766668 | H178: 0.00999347881 | I178: 0.02172883334 | J178: 0.004996739405 | K178: 0.08 | L178: 0.07472634828 | M178: -0.08988732295
B179: 1.873892039 | C179: 0.422352515 | D179: 1.920899013 | E179: 0.04346681023 | F179: 0.2216835817 | G179: 0.04240311909 | H179: 0.009557148237 | I179: 0.02120155955 | J179: 0.004778574119 | K179: 0.08 | L179: 0.07642247305 | M179: -0.08950503702
B180: 1.880005837 | C180: 0.4151921121 | D180: 1.925306842 | E180: 0.04231528323 | F180: 0.2173572795 | G180: 0.04131963681 | H180: 0.009125284051 | I180: 0.02065981841 | J180: 0.004562642026 | K180: 0.08 | L180: 0.07807525852 | M180: -0.08914002566
B181: 1.886251857 | C181: 0.40806091 | D181: 1.929885949 | E181: 0.04114038897 | F181: 0.2130511238 | G181: 0.0402102182 | H181: 0.00869884802 | I181: 0.0201051091 | J181: 0.00434942401 | K181: 0.08 | L181: 0.07968366725 | M181: -0.08879207174
B182: 1.892626551 | C182: 0.4009575443 | D182: 1.93463232 | E182: 0.03994514558 | F182: 0.2087657252 | G182: 0.03907783527 | H182: 0.008278734577 | I182: 0.01953891764 | J182: 0.004139367289 | K182: 0.08 | L182: 0.08124678066 | M182: -0.08846092236
B183: 1.899126293 | C183: 0.3938806705 | D183: 1.939541869 | E183: 0.03873251581 | F183: 0.2045016613 | G183: 0.03792541959 | H183: 0.007865769512 | I183: 0.01896270979 | J183: 0.003932884756 | K183: 0.08 | L183: 0.08276379744 | M183: -0.08814629158
B184: 1.905747397 | C184: 0.3868289672 | D184: 1.944610447 | E184: 0.03750539487 | F184: 0.2002594772 | G184: 0.03675584936 | H184: 0.007460709256 | I184: 0.01837792468 | J184: 0.003730354628 | K184: 0.08 | L184: 0.08423403142 | M184: -0.08784786321
B185: 1.912486119 | C185: 0.3798011381 | D185: 1.949833855 | E185: 0.03626659956 | F185: 0.1960396851 | G185: 0.03557193762 | H185: 0.007064240758 | I185: 0.01778596881 | J185: 0.003532120379 | K185: 0.08 | L185: 0.08565690892 | M185: -0.08756529357
B186: 1.919338672 | C186: 0.3727959146 | D186: 1.955207849 | E186: 0.03501885851 | F186: 0.1918427649 | G186: 0.03437642163 | H186: 0.006676981884 | I186: 0.01718821081 | J186: 0.003338490942 | K186: 0.08 | L186: 0.08703196579 | M186: -0.0872982143
B187: 1.926301229 | C187: 0.3658120575 | D187: 1.960728152 | E187: 0.0337648037 | F187: 0.1876691639 | G187: 0.03317195339 | H187: 0.006299482311 | I187: 0.0165859767 | J187: 0.003149741156 | K187: 0.08 | L187: 0.08835884392 | M187: -0.08704623501
B188: 1.933369937 | C188: 0.3588483587 | D188: 1.966390464 | E188: 0.03250696325 | F188: 0.1835192978 | G188: 0.03196109146 | H188: 0.005932224865 | I188: 0.01598054573 | J188: 0.002966112433 | K188: 0.08 | L188: 0.08963728758 | M188: -0.08680894601
B189: 1.94054092 | C189: 0.351903643 | D189: 1.972190466 | E189: 0.03124775523 | F189: 0.1793935507 | G189: 0.03074629389 | H189: 0.005575627247 | I189: 0.01537314694 | J189: 0.002787813624 | K189: 0.08 | L189: 0.09086713934 | M189: -0.08658592092
B190: 1.947810291 | C190: 0.3449767693 | D190: 1.978123834 | E190: 0.02998948284 | F190: 0.1752922759 | G190: 0.02952991229 | H190: 0.00523004411 | I190: 0.01476495614 | J190: 0.002615022055 | K190: 0.08 | L190: 0.09204833583 | M190: -0.08637671916
B191: 1.955174158 | C191: 0.3380666318 | D191: 1.98418624 | E191: 0.02873433052 | F191: 0.1712157963 | G191: 0.02831418711 | H191: 0.004895769428 | I191: 0.01415709356 | J191: 0.002447884714 | K191: 0.08 | L191: 0.09318090331 | M191: -0.08618088838
B192: 1.96262863 | C192: 0.3311721607 | D192: 1.990373367 | E192: 0.02748436116 | F192: 0.167164405 | G192: 0.02710124391 | H192: 0.00457303912 | I192: 0.01355062195 | J192: 0.00228651956 | K192: 0.08 | L192: 0.09426495307 | M192: -0.08599796682
B193: 1.970169826 | C193: 0.3242923234 | D193: 1.99668091 | E193: 0.02624151437 | F193: 0.1631383664 | G193: 0.02589309065 | H193: 0.004262033869 | I193: 0.01294654533 | J193: 0.002131016934 | K193: 0.08 | L193: 0.09530067669 | M193: -0.08582748546
B194: 1.977793881 | C194: 0.3174261245 | D194: 2.003104585 | E194: 0.02500760557 | F194: 0.1591379163 | G194: 0.02469161602 | H194: 0.003962882108 | I194: 0.01234580801 | J194: 0.001981441054 | K194: 0.08 | L194: 0.09628834134 | M194: -0.08566897018
B195: 1.985496948 | C195: 0.3105726069 | D195: 2.009640136 | E195: 0.02378432599 | F195: 0.1551632635 | G195: 0.02349858854 | H195: 0.003675663118 | I195: 0.01174929427 | J195: 0.001837831559 | K195: 0.08 | L195: 0.09722828488 | M195: -0.08552194365
B196: 1.993275211 | C196: 0.3037308514 | D196: 2.016283337 | E196: 0.02257324342 | F196: 0.1512145897 | G196: 0.02231565658 | H196: 0.003400410208 | I196: 0.01115782829 | J196: 0.001700205104 | K196: 0.08 | L196: 0.09812091114 | M196: -0.08538592724
B197: 2.001124884 | C197: 0.2968999773 | D197: 2.023030004 | E197: 0.02137580367 | F197: 0.1472920512 | G197: 0.02114434909 | H197: 0.003137113938 | I197: 0.01057217455 | J197: 0.001568556969 | K197: 0.08 | L197: 0.0989666851 | M197: -0.08526044269
B198: 2.009042218 | C198: 0.2900791418 | D198: 2.029875992 | E198: 0.02019333267 | F198: 0.1433957794 | G198: 0.01998607699 | H198: 0.002885725352 | I198: 0.009993038496 | J198: 0.001442862676 | K198: 0.08 | L198: 0.09976612818 | M198: -0.08514501367
B199: 2.017023509 | C199: 0.2832675407 | D199: 2.036817207 | E199: 0.01902703911 | F199: 0.1395258815 | G199: 0.0188421352 | H199: 0.002646159193 | I199: 0.009421067599 | J199: 0.001323079597 | K199: 0.08 | L199: 0.1005198136 | M199: -0.0850391673
B200: 2.025065094 | C200: 0.2764644074 | D200: 2.043849604 | E200: 0.01787801754 | F200: 0.1356824419 | G200: 0.01771370516 | H200: 0.002418297078 | I200: 0.00885685258 | J200: 0.001209148539 | K200: 0.08 | L200: 0.1012283618 | M200: -0.08494243542
... 892 more rows

Sheet Force
D2: R(start) | E2: 0.1
D3: R(step) | E3: 0.05
D4: epsilon | E4: 1 | F4: 1 | G4: 1 | H4: 2 | I4: 2
D5: sigma | E5: 0.5 | F5: 1 | G5: 2 | H5: 2 | I5: 1
D6: R | E6: F1 | F6: F2 | G6: F3 | H6: F4 | I6: F5
D7: =IF(ISNUMBER(D6),D6+$E$3,$E$2) -> 0.1 | E7: =force(E$4,E$5,$D7) -> 2875 | F7: =force(F$4,F$5,$D7) -> 98000 | G7: 3184000 | H7: 6384000 | I7: =force(I$4,I$5,$D7) -> 198000
D8: =IF(ISNUMBER(D7),D7+$E$3,$E$2) -> 0.15 | E8: =force(E$4,E$5,$D8) -> 337.4485597 | F8: 12576.13169 | G8: 416658.4362 | H8: 838057.6132 | I8: =force(I$4,I$5,$D8) -> 25744.85597
D9: 0.2 | E9: 66.40625 | F9: 2875 | G9: 98000 | H9: 198000 | I9: 6000
D10: 0.25 | E10: 16 | F10: 896 | G10: 31744 | H10: 64512 | I10: 1920
D11: 0.3 | E11: 3.600823045 | F11: 337.4485597 | G11: 12576.13169 | H11: 25744.85597 | I11: 748.9711934
D12: 0.35 | E12: 0.1189980365 | F12: 143.7496281 | G12: 5719.521628 | H12: 11812.2211 | I12: 334.1464866
D13: 0.4 | E13: -0.8544921875 | F13: 66.40625 | G13: 2875 | H13: 6000 | I13: 164.0625
D14: 0.45 | E14: -1.049975444 | F14: 32.24440719 | G14: 1558.570001 | H14: 3292.722993 | I14: 86.43668817
D15: 0.5 | E15: -1 | F15: 16 | G15: 896 | H15: 1920 | I15: 48
D16: 0.55 | E16: -0.8817082787 | F16: 7.848445523 | G16: 539.6551403 | H16: 1175.478575 | I16: 27.71792786
D17: 0.6 | E17: -0.7555298354 | F17: 3.600823045 | G17: 337.4485597 | H17: 748.9711934 | I17: 16.46090535
D18: 0.65 | E18: -0.6410031969 | F18: 1.335872209 | G18: 217.5317068 | H18: 493.3246789 | I18: 9.954402588
D19: 0.7 | E19: -0.5429285417 | F19: 0.1189980365 | G19: 143.7496281 | H19: 334.1464866 | I19: 6.068899863
D20: 0.75 | E20: -0.4609053498 | F20: -0.5267489712 | G20: 96.9218107 | H20: 231.7695473 | I20: 3.687242798
D21: 0.8 | E21: -0.3929138184 | F21: -0.8544921875 | G21: 66.40625 | H21: 164.0625 | I21: 2.197265625
D22: 0.85 | E22: -0.3366536208 | F22: -1.002917899 | G22: 46.06661093 | H22: 118.1865498 | I22: 1.250830189
D23: 0.9 | E23: -0.2900133787 | F23: -1.049975444 | G23: 32.24440719 | H23: 86.43668817 | I23: 0.6435333367
D24: 0.95 | E24: -0.2512015877 | F24: -1.040346125 | G24: 22.69376144 | H24: 64.04913535 | I24: 0.2520093098
D25: 1 | E25: -0.21875 | F25: -1 | G25: 16 | H25: 48 | I25: -8.881784197e-16
D26: 1.05 | E26: -0.1914742069 | F26: -0.9441490306 | G26: 11.25143575 | H26: 36.32427308 | I26: -0.1606228641
D27: 1.1 | E27: -0.1684249089 | F27: -0.8817082787 | G27: 7.848445523 | H27: 27.71792786 | I27: -0.2607869557
D28: 1.15 | E28: -0.1488422851 | F28: -0.8178557296 | G28: 5.389395811 | H28: 21.29905134 | I28: -0.3206789943
D29: 1.2 | E29: -0.1321172518 | F29: -0.7555298354 | G29: 3.600823045 | H29: 16.46090535 | I29: -0.3536522634
D30: 1.25 | E30: -0.11776 | F30: -0.69632 | G30: 2.29376 | H30: 12.77952 | I30: -0.36864
D31: 1.3 | E31: -0.1053750003 | F31: -0.6410031969 | G31: 1.335872209 | H31: 9.954402588 | I31: -0.3716741226
D32: 1.35 | E32: -0.09464135491 | F32: -0.5898707128 | G32: 0.6333583457 | H32: 7.76979041 | I32: -0.3668572108
D33: 1.4 | E33: -0.08529742072 | F33: -0.5429285417 | G33: 0.1189980365 | H33: 6.068899863 | I33: -0.3569941096
D34: 1.45 | E34: -0.07712878494 | F34: -0.5000207448 | G34: -0.2558608491 | H34: 4.736545963 | I34: -0.3440080319
D35: 1.5 | E35: -0.06995884774 | F35: -0.4609053498 | G35: -0.5267489712 | H35: 3.687242798 | I35: -0.329218107
D36: 1.55 | E36: -0.06364142618 | F36: -0.4253007712 | G36: -0.7198257468 | H36: 2.856948151 | I36: -0.3135265869
D37: 1.6 | E37: -0.05805492401 | F37: -0.3929138184 | G37: -0.8544921875 | H37: 2.197265625 | I37: -0.2975463867
D38: 1.65 | E38: -0.05309771643 | F38: -0.3634561687 | G38: -0.9452313408 | H38: 1.671326004 | I38: -0.2816887517
D39: 1.7 | E39: -0.0486844802 | F39: -0.3366536208 | G39: -1.002917899 | H39: 1.250830189 | I39: -0.266223993
D40: 1.75 | E40: -0.04474326174 | F40: -0.3122508479 | G40: -1.03575891 | H40: 0.9139049206 | I40: -0.2513238532
D41: 1.8 | E41: -0.04121312385 | F41: -0.2900133787 | G41: -1.049975444 | H41: 0.6435333367 | I41: -0.2370912293
D42: 1.85 | E42: -0.03804224786 | F42: -0.2697279015 | G42: -1.050300605 | H42: 0.4263962035 | I42: -0.2235811262
D43: 1.9 | E43: -0.03518639602 | F43: -0.2512015877 | G43: -1.040346125 | H43: 0.2520093098 | I43: -0.2108154803
D44: 1.95 | E44: -0.03260765995 | F44: -0.2342608772 | G44: -1.02287414 | H44: 0.1120763621 | I44: -0.198793674
D45: 2 | E45: -0.0302734375 | F45: -0.21875 | G45: -1 | H45: -1.776356839e-15 | I45: -0.1875
D46: 2.05 | E46: -0.02815559264 | F46: -0.2045294062 | G46: -0.9733445342 | H46: -0.08949024662 | I46: -0.1769089598
D47: 2.1 | E47: -0.02622976268 | F47: -0.1914742069 | G47: -0.9441490306 | H47: -0.1606228641 | I47: -0.1669890142
D48: 2.15 | E48: -0.02447478476 | F48: -0.1794726851 | G48: -0.9133625067 | H48: -0.2168038743 | I48: -0.1577052279
D49: 2.2 | E49: -0.02287221905 | F49: -0.1684249089 | G49: -0.8817082787 | H49: -0.2607869557 | I49: -0.1490211175
D50: 2.25 | E50: -0.02140595099 | F50: -0.1582414605 | G50: -0.8497349659 | H50: -0.2948060086 | I50: -0.1408999306
D51: 2.3 | E51: -0.02006185811 | F51: -0.1488422851 | G51: -0.8178557296 | H51: -0.3206789943 | I51: -0.1333055122
D52: 2.35 | E52: -0.01882753 | F52: -0.1401556564 | G52: -0.7863785759 | H52: -0.3398896755 | I52: -0.1262028783
D53: 2.4 | E53: -0.01769203217 | F53: -0.1321172518 | G53: -0.7555298354 | H53: -0.3536522634 | I53: -0.1195585777
D54: 2.45 | E54: -0.01664570619 | F54: -0.1246693299 | G54: -0.7254724112 | H54: -0.3629627741 | I54: -0.1133409037
D55: 2.5 | E55: -0.01568 | F55: -0.11776 | G55: -0.69632 | H55: -0.36864 | I55: -0.10752
D56: 2.55 | E56: -0.01478732349 | F56: -0.1113425753 | G56: -0.6681481988 | H56: -0.371358327 | I56: -0.1020678918
D57: 2.6 | E57: -0.01396092506 | F57: -0.1053750003 | G57: -0.6410031969 | H57: -0.3716741226 | I57: -0.09695846676
D58: 2.65 | E58: -0.01319478591 | F58: -0.09981934454 | G58: -0.6149085877 | H58: -0.3700470297 | I58: -0.09216742085
D59: 2.7 | E59: -0.01248352923 | F59: -0.09464135491 | G59: -0.5898707128 | H59: -0.3668572108 | I59: -0.08767218298
D60: 2.75 | E60: -0.01182234199 | F60: -0.08981006017 | G60: -0.565882857 | H60: -0.3624193578 | I60: -0.08345182582
D61: 2.8 | E61: -0.01120690737 | F61: -0.08529742072 | G61: -0.5429285417 | H61: -0.3569941096 | I61: -0.07948696971
D62: 2.85 | E62: -0.01063334629 | F62: -0.08107801895 | G62: -0.5209841087 | H62: -0.3507973847 | I62: -0.07575968383
D63: 2.9 | E63: -0.01009816661 | F63: -0.07712878494 | G63: -0.5000207448 | H63: -0.3440080319 | I63: -0.07225338766
D64: 2.95 | E64: -0.009598219014 | F64: -0.07342875333 | G64: -0.4800060656 | H64: -0.3367741177 | I64: -0.06895275495
D65: 3 | E65: -0.009130658436 | F65: -0.06995884774 | G65: -0.4609053498 | H65: -0.329218107 | I65: -0.0658436214
D66: 3.05 | E66: -0.008692910437 | F66: -0.06670168924 | G66: -0.4426824976 | H66: -0.3214411426 | I66: -0.06291289689
D67: 3.1 | E67: -0.008282641703 | F67: -0.06364142618 | G67: -0.4253007712 | H67: -0.3135265869 | I67: -0.06014848292
D68: 3.15 | E68: -0.007897734173 | F68: -0.06076358275 | G68: -0.4087233616 | H68: -0.305542961 | I68: -0.05753919523
D69: 3.2 | E69: -0.007536262274 | F69: -0.05805492401 | G69: -0.3929138184 | H69: -0.2975463867 | I69: -0.05507469177
D70: 3.25 | E70: -0.007196472866 | F70: -0.05550333564 | G70: -0.3778363718 | H70: -0.2895826207 | I70: -0.05274540592
D71: 3.3 | E71: -0.006876767534 | F71: -0.05309771643 | G71: -0.3634561687 | H71: =force(H$4,H$5,$D71) -> -0.2816887517 | I71: -0.05054248465
D72: =IF(ISNUMBER(D71),D71+$E$3,$E$2) -> 3.35 | E72: =force(E$4,E$5,$D72) -> -0.006575686915 | F72: -0.05082788228 | G72: -0.3497394409 | H72: -0.2738946177 | I72: -0.04845773155
D73: 3.4 | E73: -0.006291896825 | F73: -0.0486844802 | G73: -0.3366536208 | H73: -0.266223993 | I73: -0.04648355433
D74: 3.45 | E74: -0.006024175926 | F74: -0.04665891131 | G74: -0.3241674154 | H74: -0.2586955819 | I74: -0.04461291652
D75: 3.5 | E75: -0.005771404772 | F75: -0.04474326174 | G75: -0.3122508479 | H75: -0.2513238532 | I75: -0.04283929315
D76: 3.55 | E76: -0.005532556044 | F76: -0.04293024052 | G76: -0.3008752738 | H76: -0.24411974 | I76: -0.04115663009
D77: 3.6 | E77: -0.00530668584 | F77: -0.04121312385 | G77: -0.2900133787 | H77: -0.2370912293 | I77: -0.03955930668
D78: 3.65 | E78: -0.005092925896 | F78: -0.03958570475 | G78: -0.2796391605 | H78: -0.2302438573 | I78: -0.03804210152
D79: 3.7 | E79: -0.004890476614 | F79: -0.03804224786 | G79: -0.2697279015 | H79: -0.2235811262 | I79: -0.03660016114
D80: 3.75 | E80: -0.004698600823 | F80: -0.03657744856 | G80: -0.2602561317 | H80: -0.217104856 | I80: -0.03522897119
D81: 3.8 | E81: -0.004516618176 | F81: -0.03518639602 | G81: -0.2512015877 | H81: -0.2108154803 | I81: -0.03392433017
D82: 3.85 | E82: -0.004343900111 | F82: -0.03386453987 | G82: -0.2425431663 | H82: -0.2047122962 | I82: -0.03268232518
D83: 3.9 | E83: -0.004179865315 | F83: -0.03260765995 | G83: -0.2342608772 | H83: -0.198793674 | I83: -0.03149930985
D84: 3.95 | E84: -0.004023975642 | F84: -0.03141183894 | G84: -0.2263357929 | H84: -0.1930572349 | I84: -0.030371884
D85: 4 | E85: -0.003875732422 | F85: -0.0302734375 | G85: -0.21875 | H85: -0.1875 | I85: -0.029296875
D86: 4.05 | E86: -0.003734673126 | F86: -0.02918907173 | G86: -0.211486549 | H86: -0.1821185158 | I86: -0.0282713207
D87: 4.1 | E87: -0.003600368357 | F87: -0.02815559264 | G87: -0.2045294062 | H87: -0.1769089598 | I87: -0.02729245369
D88: 4.15 | E88: -0.003472419109 | F88: -0.02717006746 | G88: -0.1978634065 | H88: -0.1718672289 | I88: -0.02635768691
D89: 4.2 | E89: -0.003350454298 | F89: -0.02622976268 | G89: -0.1914742069 | H89: -0.1669890142 | I89: -0.02546460041
D90: 4.25 | E90: -0.003234128507 | F90: -0.02533212852 | G90: -0.1853482428 | H90: -0.1622698624 | I90: -0.02461092913
D91: 4.3 | E91: -0.003123119942 | F91: -0.02447478476 | G91: -0.1794726851 | H91: -0.1577052279 | I91: -0.02379455172
D92: 4.35 | E92: -0.003017128571 | F92: -0.02365550785 | G92: -0.1738353998 | H92: -0.1532905158 | I92: -0.02301348022
D93: 4.4 | E93: -0.002915874426 | F93: -0.02287221905 | G93: -0.1684249089 | H93: -0.1490211175 | I93: -0.02226585057
D94: 4.45 | E94: -0.002819096062 | F94: -0.02212297364 | G94: -0.1632303539 | H94: -0.1448924402 | I94: -0.02154991384
D95: 4.5 | E95: -0.002726549137 | F95: -0.02140595099 | G95: -0.1582414605 | H95: -0.1408999306 | I95: -0.02086402818
D96: 4.55 | E96: -0.00263800513 | F96: -0.02071944547 | G96: -0.1534485054 | H96: -0.1370390943 | I96: -0.02020665137
D97: 4.6 | E97: -0.002553250153 | F97: -0.02006185811 | G97: -0.1488422851 | H97: -0.1333055122 | I97: -0.01957633395
D98: =IF(ISNUMBER(D97),D97+$E$3,$E$2) -> 4.65 | E98: -0.002472083875 | F98: -0.01943168895 | G98: -0.144414086 | H98: -0.1296948519 | I98: -0.01897171289
D99: =IF(ISNUMBER(D98),D98+$E$3,$E$2) -> 4.7 | E99: -0.00239431853 | F99: -0.01882753 | G99: -0.1401556564 | H99: -0.1262028783 | I99: -0.01839150568
D100: 4.75 | E100: -0.002319778006 | F100: -0.01824805874 | G100: -0.1360591802 | H100: -0.1228254605 | I100: -0.017834505
D101: 4.8 | E101: -0.002248297012 | F101: -0.01769203217 | G101: -0.1321172518 | H101: -0.1195585777 | I101: -0.01729957361
D102: 4.85 | E102: -0.002179720314 | F102: -0.01715828133 | G102: -0.1283228528 | H102: -0.1163983224 | I102: -0.01678563975
D103: 4.9 | E103: -0.002113902022 | F103: -0.01664570619 | G103: -0.1246693299 | H103: -0.1133409037 | I103: -0.01629169287
D104: 4.95 | E104: -0.002050704947 | F104: -0.01615327101 | G104: -0.1211503738 | H104: -0.1103826481 | I104: -0.01581677958
D105: 5 | E105: -0.00199 | F105: -0.01568 | G105: -0.11776 | H105: -0.10752 | I105: -0.01536

Sheet Sheet3
